fUSD/lending_fUSD_20250226
["ID","MTS","AMOUNT","RATE_DAILY","PERIOD"]
[354670269,1740610246635,-163.02,0.00025253,2]
[354670271,1740610246644,-151.0,0.00025312,7]
[354670273,1740610246654,-151.0,0.00025312,7]
[354670275,1740610246662,-395.98713458,0.00025762,4]
[354670277,1740610246670,-58160.06190049,0.0002592,8]
[354670281,1740610246694,-5503.12715141,0.0002592,8]
[354670283,1740610246705,-2940.54587195,0.0002592,8]
[354670284,1740610246719,-1899.79393824,0.0002592,8]
[354670285,1740610246730,-8665.65604414,0.0002592,8]
[354670286,1740610246740,-1637.10019741,0.0002592,8]
[354670287,1740610246751,-15893.83400904,0.0002592,8]
[354670288,1740610246762,-23724.06278281,0.0002592,8]
[354670289,1740610246771,-151.0,0.0002592,7]
[354670290,1740610246780,-151.0,0.0002592,7]
[354670291,1740610246789,-151.0,0.0002592,7]
[354670292,1740610246799,-151.0,0.0002592,7]
[354670294,1740610246809,-237.494896,0.0002592,7]
[354670296,1740610246818,-151.0,0.0002592,7]
[354670298,1740610246827,-151.0,0.0002592,7]
[354670300,1740610246836,-151.0,0.0002592,7]
[354670302,1740610246845,-151.0,0.0002592,7]
[354670303,1740610246854,-151.0,0.0002592,7]
[354670306,1740610246868,-151.0,0.0002592,7]
[354670308,1740610246877,-151.0,0.0002592,7]
[354670309,1740610246886,-151.0,0.0002592,7]
[354670311,1740610246895,-151.0,0.0002592,7]
[354670313,1740610246906,-151.236189,0.0002592,7]
[354670317,1740610246915,-206.978381,0.0002592,7]
[354670320,1740610246924,-151.0,0.00025925,7]
[354670323,1740610246933,-151.0,0.00025925,7]
[354670325,1740610246944,-8070.32864562,0.00025927,2]
[354670328,1740610246954,-853.63420232,0.00025927,2]
[354670330,1740610246963,-157.9,0.00025927,2]
[354670332,1740610246973,-9335.53816538,0.00025927,8]
[354670335,1740610246984,-383.20020393,0.00025927,8]
[354670352,1740610247335,-421.5799658,0.00025927,8]
[354670353,1740610247346,-11239.1716,0.00025927,8]
[354670354,1740610247357,-42261.81668167,0.00025927,8]
[354670355,1740610247368,-269.24704914,0.00025927,8]
[354670356,1740610247379,-1208.0,0.00025927,8]
[354670357,1740610247390,-6677.12060272,0.00025927,8]
[354670358,1740610247402,-1487.77133935,0.00025927,8]
[354670359,1740610247422,-373.78320873,0.00025927,8]
[354670360,1740610247433,-485.69143973,0.00025927,8]
[354670361,1740610247478,-557.6099985,0.00025927,8]
[354670362,1740610247489,-2866.08229076,0.00025927,8]
[354670363,1740610247500,-3999.6859471,0.00025927,8]
[354670364,1740610247511,-1024.15,0.00025927,8]
[354670365,1740610247522,-692.17038355,0.00025927,8]
[354670366,1740610247534,-16717.38112364,0.00025927,8]
[354670367,1740610247543,-151.0,0.00025928,7]
[354670368,1740610247553,-172.02,0.00026689,2]
[354670369,1740610247563,-151.0,0.00026787,7]
[354670370,1740610247573,-151.0,0.00026787,7]
[354670371,1740610247582,-487.72,0.00026812,120]
[354670372,1740610247591,-246.21,0.00026849,2]
[354670373,1740610247600,-152.71,0.00026849,2]
[354670374,1740610247609,-153.62,0.00026849,2]
[354670375,1740610247619,-808.65068088,0.00026957,2]
[354670376,1740610247628,-400.0,0.00027,2]
[354670377,1740610247637,-1000.0,0.00027147,2]
[354670378,1740610247646,-163.02,0.00027196,2]
[354670379,1740610247655,-395.98713458,0.00027314,4]
[354670380,1740610247664,-150.03,0.00027397,2]
[354670381,1740610247673,-688.31,0.00027398,2]
[354670382,1740610247682,-172.02,0.0002779,2]
[354670383,1740610247691,-1013.77635724,0.00027971,2]
[354670384,1740610247700,-23110.44,0.00028203,2]
[354670385,1740610247709,-669.47,0.00028203,2]
[354670386,1740610247718,-7477.65,0.00028203,2]
[354670387,1740610247727,-150.03,0.00028203,2]
[354670388,1740610247736,-151.0,0.00028222,7]
[354670389,1740610247745,-151.0,0.00028222,7]
[354670390,1740610247754,-4406.49967445,0.00028222,2]
[354670391,1740610247764,-14938.83023445,0.00028222,2]
[354670392,1740610247783,-2105.41505045,0.00028222,2]
[354670393,1740610247792,-663.55857428,0.0002862,2]
[354670394,1740610247801,-395.98713458,0.00028866,5]
[354670395,1740610247811,-167.33,0.00028879,120]
[354670396,1740610247820,-172.02,0.00028891,2]
[354670397,1740610247829,-450.0,0.00029,2]
[354670398,1740610247839,-150.03,0.00029009,2]
[354670399,1740610247848,-151.0,0.00029009,7]
[354670400,1740610247858,-151.0,0.00029009,7]
[354670401,1740610247871,-151.0,0.00029009,7]
[354670402,1740610247881,-152.304945,0.00029009,7]
[354670403,1740610247890,-163.02,0.00029138,2]
[354670404,1740610247899,-198.84,0.00029191,30]
[354670405,1740610247909,-487.72,0.00029494,120]
[354670406,1740610247919,-688.31,0.00029661,2]
[354670407,1740610247927,-150.03,0.00029815,2]
[354670408,1740610247937,-151.0,0.00029815,7]
[354670409,1740610247947,-151.0,0.00029815,7]
[354670410,1740610247956,-151.0,0.00029815,7]
[354670411,1740610247965,-220.370355,0.00029815,7]
[354670412,1740610247974,-226.95659428,0.0002999,2]
[354670413,1740610247984,-172.02,0.00029992,2]
[354670414,1740610247994,-1567.92042146,0.0003,2]
[354670415,1740610248003,-12.63799011,0.0003,30]
[354670416,1740610248014,-147.06200989,0.0003,30]
[354670417,1740610248023,-360.0432765,0.0003,120]
[354670418,1740610248033,-209.999006,0.0003,7]
[354670419,1740610248042,-4000.0,0.0003,2]
[354670420,1740610248051,-395.98713458,0.00030417,5]
[354670421,1740610248061,-150.03,0.0003062,2]
[354670422,1740610248070,-500.0,0.00031,2]
[354670423,1740610248079,-296.46,0.00031074,2]
[354670424,1740610248088,-172.02,0.00031094,2]
[354670425,1740610248097,-150.03,0.00031426,2]
[354670426,1740610248107,-1927.40408701,0.00031558,2]
[354670428,1740610248130,-2479.09558744,0.00031558,2]
[354670429,1740610248139,-6901.17314876,0.00031558,2]
[354670430,1740610248151,-449.5557128,0.00031558,2]
[354670664,1740611432551,-1353.016,0.000148,2]
[354670665,1740611432572,-476.41606739,0.000148,2]
[354670666,1740611432582,-207.58037744,0.000148,2]
[354670667,1740611432592,-150.0,0.00014937,2]
[354670668,1740611432602,-450.0,0.000159,2]
[354670669,1740611432615,-450.0,0.0001628,2]
[354670670,1740611432625,-150.0,0.0001628,2]
[354670671,1740611432635,-150.0,0.0001628,2]
[354670672,1740611432645,-176.51,0.00016712,2]
[354670673,1740611432655,-555.0,0.00019819,2]
[354670674,1740611432664,-10544.09832455,0.0001982,2]
[354670675,1740611432675,-500.0,0.0001982,2]
[354670676,1740611432686,-2643.39459498,0.0001982,2]
[354670677,1740611432698,-683.38818024,0.0001982,2]
[354670678,1740611432709,-34847.31094918,0.0001982,2]
[354670679,1740611432719,-450.0,0.00020288,2]
[354670680,1740611432728,-159.36,0.00020418,2]
[354670681,1740611432738,-250.0,0.00021,2]
[354670682,1740611432747,-500.0,0.000223,2]
[354670683,1740611432757,-300.0,0.00023,2]
[354670684,1740611432766,-200.0,0.00023,2]
[354670685,1740611432776,-408.95613911,0.000236,3]
[354670686,1740611432785,-408.9561389,0.000236,3]
[354670687,1740611432794,-408.9561389,0.00023659,3]
[354670688,1740611432803,-3281.0,0.000242,5]
[354670689,1740611432812,-796.87,0.00024245,2]
[354670690,1740611432822,-500.0,0.0002457,2]
[354670691,1740611432832,-500.0,0.0002467,3]
[354670692,1740611432842,-500.0,0.0002477,3]
[354670693,1740611432852,-500.0,0.00024932,2]
[354670694,1740611432861,-350.0,0.00025,2]
[354670695,1740611432871,-408.9561389,0.00025038,4]
[354670696,1740611432880,-150.0,0.00025464,7]
[354670697,1740611432890,-199.15,0.00025464,2]
[354670698,1740611432899,-1000.0,0.00025527,2]
[354670699,1740611432908,-150.0,0.00025553,2]
[354670700,1740611432917,-950.64,0.00025554,2]
[354670701,1740611432927,-163.03,0.0002567,2]
[354670703,1740611432936,-165.7,0.0002573,30]
[354670705,1740611432945,-500.0,0.000258,2]
[354670706,1740611432954,-33063.39058451,0.00025854,2]
[354670707,1740611432964,-157.9,0.00025939,2]
[354670708,1740611432973,-181.12,0.00026079,2]
[354670709,1740611432981,-600.0,0.00026126,2]
[354670710,1740611432992,-3090.94,0.00026192,2]
[354670711,1740611433000,-217.0,0.000264,2]
[354670712,1740611433010,-408.9561389,0.00026417,4]
[354670713,1740611433019,-796.87,0.00026509,2]
[354670714,1740611433028,-256.97,0.00026849,2]
[354670715,1740611433037,-400.0,0.00027,2]
[354670716,1740611433047,-150.0,0.00027397,2]
[354670717,1740611433056,-150.0,0.00027397,2]
[354670718,1740611433066,-500.0,0.00027433,2]
[354670719,1740611433075,-16952.21190712,0.00027605,2]
[354670720,1740611433084,-23900.0,0.00027765,2]
[354670721,1740611433095,-1418.12,0.00027771,2]
[354670723,1740611433104,-408.9561389,0.00027797,4]
[354670725,1740611433113,-217.0,0.0002784,2]
[354670727,1740611433122,-905.99,0.00027864,120]
[354670729,1740611433131,-1000.0,0.00027896,2]
[354670731,1740611433140,-200.0,0.00027897,2]
[354670733,1740611433150,-150.0,0.00028118,2]
[354670735,1740611433159,-1824.67,0.00028203,2]
[354670737,1740611433168,-1000.0,0.00028718,2]
[354670739,1740611433178,-2665.78537495,0.00028719,2]
[354670741,1740611433186,-796.87,0.00028773,2]
[354670743,1740611433196,-150.0,0.00028839,2]
[354670745,1740611433205,-169.65,0.00028894,2]
[354670747,1740611433215,-450.0,0.00029,2]
[354670749,1740611433230,-408.9561389,0.00029176,5]
[354670751,1740611433241,-217.0,0.0002929,2]
[354670753,1740611433251,-77270.70491436,0.00029542,2]
[354670755,1740611433262,-150.0,0.0002956,2]
[354670757,1740611433271,-4775.56537321,0.000299,2]
[354670759,1740611433282,-7450.08,0.0003,30]
[354670761,1740611433292,-1603.155,0.0003,24]
[354670763,1740611433301,-165.406,0.0003,24]
[354670765,1740611433310,-1000.0,0.0003,2]
[354670767,1740611433319,-1151.0,0.0003,2]
[354670769,1740611433330,-1000.0,0.0003,2]
[354670771,1740611433339,-1918.4,0.00030175,120]
[354670772,1740611433348,-218.16,0.00030175,2]
[354670774,1740611433358,-153.32,0.00030182,2]
[354670776,1740611433367,-519.52396532,0.00030207,5]
[354670778,1740611433376,-165.7,0.00030208,30]
[354670780,1740611433386,-2000.0,0.00030227,120]
[354670782,1740611433395,-150.0,0.00030281,2]
[354670784,1740611433404,-246.98,0.00030361,2]
[354670786,1740611433414,-160.68040895,0.00030362,5]
[354670788,1740611433423,-1678.0,0.000304,2]
[354670790,1740611433433,-681.21,0.00030401,2]
[354670792,1740611433442,-500.15067257,0.00030482,5]
[354670794,1740611433451,-316.66289104,0.00030527,5]
[354670796,1740611433460,-408.9561389,0.00030555,5]
[354670798,1740611433471,-17817.37,0.0003062,10]
[354670800,1740611433479,-150.99,0.0003062,2]
[354670802,1740611433489,-150.99,0.0003062,2]
[354670804,1740611433498,-852.98,0.0003062,20]
[354670806,1740611433506,-499.99,0.0003062,2]
[354670808,1740611433516,-9999.99,0.0003062,2]
[354670810,1740611433525,-9999.99,0.0003062,2]
[354670812,1740611433534,-909.49,0.0003062,90]
[354670814,1740611433543,-299.99,0.0003062,12]
[354670816,1740611433552,-9999.99,0.0003062,2]
[354670818,1740611433561,-999.99,0.0003062,2]
[354670820,1740611433570,-2561.95,0.0003062,2]
[354670821,1740611433579,-217.0,0.0003074,2]
[354670822,1740611433589,-532.76677779,0.0003085,5]
[354670823,1740611433599,-2100.56,0.000309,2]
[354670824,1740611433608,-250.0,0.0003091,2]
[354670825,1740611433618,-155.6551682,0.00030926,4]
[354670826,1740611433627,-500.0,0.00031,2]
[354670827,1740611433636,-150.0,0.00031002,2]
[354670828,1740611433645,-737.45,0.00031007,2]
[354670829,1740611433655,-796.87,0.00031037,2]
[354670831,1740611433663,-500.0,0.00031224,2]
[354670833,1740611433673,-905.99,0.00031347,120]
[354670835,1740611433682,-7787.04975633,0.000314,2]
[354670837,1740611433691,-163.99936508,0.00031458,2]
[354670839,1740611433700,-17404.9890866,0.000315,120]
[354670841,1740611433712,-12950.0109134,0.000315,120]
[354670843,1740611433722,-205.27,0.000315,2]
[354670845,1740611433731,-167.2565271,0.00031558,7]
[354670847,1740611433740,-200.79230263,0.00031558,7]
[354670849,1740611433749,-4000.0,0.00031558,7]
[354670851,1740611433758,-19885.5541141,0.0003157,2]
[354670853,1740611433768,-3632.09292589,0.0003157,2]
[354670856,1740611433783,-3983.04186657,0.0003157,2]
[354670874,1740611433948,-1287.74999999,0.0003157,2]
[354670876,1740611433959,-224.58224715,0.0003157,2]
[354670878,1740611433968,-585.42843994,0.00031591,2]
[354670880,1740611433979,-2042.67767467,0.00031591,2]
[354670882,1740611433990,-2147.45925853,0.00031591,2]
[354670884,1740611433999,-153.32,0.00031692,2]
[354670886,1740611434008,-150.0,0.00031723,2]
[354670888,1740611434018,-300.0,0.00031771,2]
[354670890,1740611434027,-1000.0,0.00031909,2]
[354670892,1740611434036,-408.9561389,0.00031934,6]
[354670894,1740611434045,-163.03,0.00032088,2]
[354670896,1740611434054,-217.0,0.0003219,2]
[354670898,1740611434063,-150.0,0.00032444,2]
[354670900,1740611434072,-256.97,0.00032646,2]
[354670902,1740611434082,-1000.0,0.00032877,120]
[354670904,1740611434092,-1000.0,0.00032877,120]
[354670906,1740611434101,-1000.0,0.00032877,120]
[354670908,1740611434110,-7787.04975629,0.00032928,2]
[354670910,1740611434120,-550.0,0.00033,2]
[354670912,1740611434129,-160.239,0.00033125,2]
[354670914,1740611434138,-200.0,0.00033125,2]
[354670916,1740611434147,-300.0,0.00033141,2]
[354670918,1740611434156,-150.0,0.00033165,2]
[354670920,1740611434165,-153.32,0.00033201,2]
[354670922,1740611434175,-4775.56537314,0.00033283,2]
[354670924,1740611434184,-796.87,0.000333,2]
[354670926,1740611434193,-408.9561389,0.00033314,6]
[354670928,1740611434202,-217.0,0.0003363,2]
[354670930,1740611434211,-169.65,0.00033663,2]
[354670932,1740611434221,-150.0,0.00033886,2]
[354670934,1740611434230,-200.0,0.00034069,120]
[354670936,1740611434240,-7787.04975629,0.00034456,2]
[354670938,1740611434248,-168.454,0.00034487,2]
[354670940,1740611434257,-150.0,0.00034607,2]
[354670942,1740611434268,-319.51077396,0.00034681,2]
[354670944,1740611434280,-165.7,0.00034687,120]
[354670946,1740611434291,-408.9561389,0.00034693,7]
[354670965,1740611434428,-180.2,0.00034781,2]
[354670967,1740611434470,-253.571,0.00034781,2]
[354670970,1740611434479,-170.721,0.00034781,2]
[354670972,1740611434489,-1275.0,0.00034781,2]
[354670973,1740611434498,-2028.0,0.00034781,2]
[354670975,1740611434508,-150.0,0.00034781,2]
[354670977,1740611434518,-1622.0,0.00034781,2]
[354670979,1740611434527,-570.0,0.00034781,2]
[354670981,1740611434536,-639.0,0.00034781,2]
[354670983,1740611434545,-784.0,0.00034781,2]
[354670985,1740611434555,-909.0,0.00034781,2]
[354670987,1740611434564,-540.0,0.00034781,2]
[354670989,1740611434573,-1425.0,0.00034781,2]
[354670991,1740611434582,-1267.0,0.00034781,2]
[354670993,1740611434592,-4034.0,0.00034781,2]
[354670995,1740611434602,-3922.0,0.00034781,2]
[354670997,1740611434611,-150.0,0.00034781,2]
[354670999,1740611434620,-1010.0,0.00034781,2]
[354671001,1740611434629,-36312.8427,0.000348,2]
[354671003,1740611434638,-1000.0,0.000348,2]
[354671006,1740611434649,-500.0,0.000348,2]
[354671007,1740611434659,-2467.1675,0.000348,2]
[354671010,1740611434668,-1053.6601,0.000348,2]
[354671012,1740611434678,-905.99,0.0003483,120]
[354671014,1740611434687,-83670.64616928,0.000349,2]
[354671016,1740611434698,-4775.56537314,0.00034974,2]
[354671017,1740611434707,-6173.9271648,0.00035,10]
[354671019,1740611434717,-511.999999,0.00035,30]
[354671022,1740611434727,-701.07652567,0.00035,5]
[354671024,1740611434736,-503.13276356,0.00035,30]
[354671026,1740611434745,-350.0,0.00035,120]
[354671028,1740611434754,-236.85,0.00035,2]
[354671030,1740611434764,-600.0,0.00035,2]
[354671032,1740611434773,-3061.0,0.0003508,5]
[354671034,1740611434782,-217.0,0.0003508,2]
[354671036,1740611434792,-1000.0,0.000351,2]
[354671038,1740611434800,-1000.0,0.000352,7]
[354671040,1740611434810,-150.0,0.00035328,2]
[354671042,1740611434819,-56190.9517,0.00035516,2]
[354671044,1740611434828,-7500.0,0.00035516,2]
[354671046,1740611434837,-172.95717646,0.0003554,8]
[354671048,1740611434847,-796.87,0.00035564,2]
[354671050,1740611434856,-699.55082891,0.00035573,2]
[354671052,1740611434865,-10722.29811995,0.00035616,30]
[354671054,1740611434875,-252.53248494,0.00035616,14]
[354671055,1740611434884,-500.0,0.00035616,14]
[354671056,1740611434894,-282.4512139,0.00035616,14]
[354671057,1740611434903,-504.32680062,0.00035616,14]
[354671058,1740611434911,-300.0,0.00035616,14]
[354671059,1740611434920,-500.0,0.00035616,14]
[354671060,1740611434928,-500.0,0.00035616,14]
[354671061,1740611434937,-500.0,0.00035616,14]
[354671062,1740611434946,-500.0,0.00035616,14]
[354671063,1740611434955,-500.0,0.00035616,14]
[354671065,1740611434964,-601.84,0.00035616,14]
[354671067,1740611434973,-500.0,0.00035616,14]
[354671069,1740611434982,-500.0,0.00035616,14]
[354671071,1740611434992,-500.0,0.00035616,14]
[354671073,1740611435000,-500.0,0.00035616,14]
[354671075,1740611435010,-500.0,0.00035616,14]
[354671077,1740611435019,-193.54658888,0.00035616,14]
[354671080,1740611435030,-500.0,0.00035616,14]
[354671082,1740611435038,-490.91467017,0.00035616,14]
[354671083,1740611435047,-500.0,0.00035616,14]
[354671085,1740611435056,-500.0,0.00035616,14]
[354671087,1740611435066,-500.0,0.00035616,14]
[354671089,1740611435074,-500.0,0.00035616,14]
[354671091,1740611435084,-500.0,0.00035616,14]
[354671093,1740611435094,-500.0,0.00035616,14]
[354671095,1740611435103,-500.0,0.00035616,14]
[354671097,1740611435112,-500.74524958,0.00035616,14]
[354671099,1740611435121,-500.0,0.00035616,14]
[354671101,1740611435131,-500.0,0.00035616,14]
[354671103,1740611435140,-500.0,0.00035616,14]
[354671105,1740611435149,-500.0,0.00035616,14]
[354671107,1740611435159,-500.0,0.00035616,14]
[354671109,1740611435168,-500.0,0.00035616,14]
[354671111,1740611435177,-392.51554355,0.00035616,14]
[354671113,1740611435186,-500.0,0.00035616,14]
[354671115,1740611435196,-500.0,0.00035616,14]
[354671117,1740611435205,-500.0,0.00035616,14]
[354671119,1740611435215,-500.0,0.00035616,14]
[354671121,1740611435225,-500.0,0.00035616,14]
[354671123,1740611435235,-500.0,0.00035616,14]
[354671125,1740611435244,-500.0,0.00035616,14]
[354671127,1740611435253,-500.0,0.00035616,14]
[354671129,1740611435264,-488.78778502,0.00035616,14]
[354671131,1740611435273,-500.0,0.00035616,14]
[354671133,1740611435287,-500.0,0.00035616,14]
[354671135,1740611435296,-500.0,0.00035616,14]
[354671137,1740611435305,-500.0,0.00035616,14]
[354671139,1740611435314,-500.0,0.00035616,14]
[354671141,1740611435324,-500.0,0.00035616,14]
[354671143,1740611435333,-500.0,0.00035616,14]
[354671145,1740611435346,-500.0,0.00035616,14]
[354671147,1740611435355,-500.0,0.00035616,14]
[354671149,1740611435365,-500.0,0.00035616,14]
[354671151,1740611435374,-356.84484089,0.00035616,14]
[354671153,1740611435383,-500.0,0.00035616,14]
[354671155,1740611435393,-500.0,0.00035616,14]
[354671157,1740611435402,-500.0,0.00035616,14]
[354671159,1740611435411,-500.0,0.00035616,14]
[354671161,1740611435420,-511.21,0.00035616,14]
[354671163,1740611435429,-500.0,0.00035616,14]
[354671165,1740611435439,-500.0,0.00035616,14]
[354671167,1740611435448,-500.0,0.00035616,14]
[354671169,1740611435458,-500.0,0.00035616,14]
[354671171,1740611435467,-500.0,0.00035616,14]
[354671173,1740611435476,-617.77,0.00035616,14]
[354671175,1740611435485,-298.2292063,0.00035616,14]
[354671177,1740611435494,-156.39531984,0.00035616,14]
[354671179,1740611435503,-500.0,0.00035616,14]
[354671181,1740611435512,-338.31802649,0.00035616,14]
[354671183,1740611435521,-500.0,0.00035616,14]
[354671185,1740611435531,-509.88113417,0.00035616,14]
[354671187,1740611435540,-500.0,0.00035616,14]
[354671189,1740611435549,-500.0,0.00035616,14]
[354671191,1740611435558,-500.0,0.00035616,14]
[354671193,1740611435567,-500.0,0.00035616,14]
[354671195,1740611435577,-500.0,0.00035616,14]
[354671197,1740611435588,-500.0,0.00035616,14]
[354671199,1740611435598,-500.0,0.00035616,14]
[354671201,1740611435607,-500.0,0.00035616,14]
[354671203,1740611435616,-500.0,0.00035616,14]
[354671205,1740611435625,-500.0,0.00035616,14]
[354671207,1740611435634,-500.0,0.00035616,14]
[354671209,1740611435643,-500.0,0.00035616,14]
[354671211,1740611435652,-500.0,0.00035616,14]
[354671213,1740611435662,-500.0,0.00035616,14]
[354671215,1740611435671,-493.94608561,0.00035616,14]
[354671217,1740611435680,-624.33522165,0.00035616,14]
[354671219,1740611435690,-500.0,0.00035616,14]
[354671221,1740611435699,-500.0,0.00035616,14]
[354671223,1740611435708,-500.0,0.00035616,14]
[354671225,1740611435718,-500.0,0.00035616,14]
[354671227,1740611435727,-500.0,0.00035616,14]
[354671229,1740611435737,-421.2363506,0.00035616,14]
[354671231,1740611435746,-465.93296504,0.00035616,14]
[354671233,1740611435755,-409.93999751,0.00035616,14]
[354671235,1740611435764,-500.0,0.00035616,14]
[354671237,1740611435773,-458.63963019,0.00035616,14]
[354671239,1740611435782,-500.0,0.00035616,14]
[354671241,1740611435792,-500.0,0.00035616,14]
[354671243,1740611435801,-500.0,0.00035616,14]
[354671245,1740611435810,-500.0,0.00035616,14]
[354671246,1740611435820,-647.54,0.00035616,14]
[354671248,1740611435829,-500.0,0.00035616,14]
[354671250,1740611435838,-500.0,0.00035616,14]
[354671252,1740611435848,-500.0,0.00035616,14]
[354671254,1740611435857,-500.0,0.00035616,14]
[354671256,1740611435866,-500.0,0.00035616,14]
[354671258,1740611435876,-500.0,0.00035616,14]
[354671260,1740611435884,-588.95,0.00035616,14]
[354671262,1740611435894,-500.0,0.00035616,14]
[354671264,1740611435903,-500.0,0.00035616,14]
[354671266,1740611435912,-500.0,0.00035616,14]
[354671268,1740611435921,-500.0,0.00035616,14]
[354671270,1740611435930,-501.99419004,0.00035616,14]
[354671272,1740611435940,-500.0,0.00035616,14]
[354671274,1740611435949,-500.0,0.00035616,14]
[354671276,1740611435958,-500.0,0.00035616,14]
[354671278,1740611435967,-500.0,0.00035616,14]
[354671280,1740611435976,-500.0,0.00035616,14]
[354671282,1740611435985,-500.0,0.00035616,14]
[354671284,1740611435995,-500.0,0.00035616,14]
[354671286,1740611436004,-500.0,0.00035616,14]
[354671288,1740611436013,-500.0,0.00035616,14]
[354671290,1740611436022,-500.0,0.00035616,14]
[354671292,1740611436031,-500.0,0.00035616,14]
[354671294,1740611436040,-500.0,0.00035616,14]
[354671296,1740611436049,-500.0,0.00035616,14]
[354671298,1740611436058,-500.0,0.00035616,14]
[354671300,1740611436067,-500.0,0.00035616,14]
[354671302,1740611436076,-500.0,0.00035616,14]
[354671303,1740611436085,-500.0,0.00035616,14]
[354671304,1740611436096,-500.0,0.00035616,14]
[354671305,1740611436105,-500.0,0.00035616,14]
[354671306,1740611436115,-500.0,0.00035616,14]
[354671307,1740611436124,-500.0,0.00035616,14]
[354671308,1740611436134,-500.0,0.00035616,14]
[354671309,1740611436144,-500.0,0.00035616,14]
[354671310,1740611436153,-500.0,0.00035616,14]
[354671312,1740611436163,-500.0,0.00035616,14]
[354671314,1740611436173,-600.26784462,0.00035616,14]
[354671316,1740611436182,-500.0,0.00035616,14]
[354671318,1740611436191,-500.0,0.00035616,14]
[354671320,1740611436201,-500.0,0.00035616,14]
[354671322,1740611436211,-500.0,0.00035616,14]
[354671324,1740611436221,-500.0,0.00035616,14]
[354671326,1740611436230,-500.0,0.00035616,14]
[354671328,1740611436239,-500.0,0.00035616,14]
[354671330,1740611436250,-500.0,0.00035616,14]
[354671332,1740611436264,-502.57399191,0.00035616,90]
[354671334,1740611436274,-637.07,0.00035616,14]
[354671336,1740611436286,-500.0,0.00035616,14]
[354671338,1740611436295,-500.0,0.00035616,14]
[354671340,1740611436304,-584.65,0.00035616,14]
[354671342,1740611436314,-500.0,0.00035616,14]
[354671344,1740611436325,-500.0,0.00035616,14]
[354671346,1740611436334,-500.0,0.00035616,14]
[354671348,1740611436348,-500.0,0.00035616,14]
[354671350,1740611436358,-500.0,0.00035616,14]
[354671352,1740611436372,-500.0,0.00035616,14]
[354671354,1740611436383,-500.0,0.00035616,14]
[354671356,1740611436393,-500.0,0.00035616,14]
[354671358,1740611436404,-500.0,0.00035616,14]
[354671360,1740611436414,-500.0,0.00035616,14]
[354671362,1740611436423,-500.0,0.00035616,14]
[354671364,1740611436432,-500.0,0.00035616,14]
[354671366,1740611436442,-504.27778139,0.00035616,14]
[354671368,1740611436451,-500.0,0.00035616,14]
[354671370,1740611436461,-376.2,0.00035616,14]
[354671372,1740611436470,-500.0,0.00035616,14]
[354671374,1740611436479,-502.069623,0.00035616,14]
[354671376,1740611436488,-500.0,0.00035616,14]
[354671378,1740611436497,-500.0,0.00035616,14]
[354671380,1740611436506,-500.0,0.00035616,14]
[354671382,1740611436515,-500.0,0.00035616,14]
[354671384,1740611436524,-500.0,0.00035616,14]
[354671386,1740611436533,-500.0,0.00035616,14]
[354671388,1740611436542,-500.0,0.00035616,14]
[354671390,1740611436551,-500.0,0.00035616,14]